Cogmind - Beta 13 X1 --- EXPLORER MODE // 2023.06.25 @ 18:03:14 // Winter2022/Polymind Player: PhenomPhear Result: Destroyed by DAS Turret with DAS Cannon Performance ------------- Evolutions (1) 500 Regions Visited (5) 1000 Robots Destroyed (47) 235 Value Destroyed (1255) 1255 Prototype IDs (0) 0 Alien Tech Used (0) 0 Bonus (2665) 2665 TOTAL SCORE: 5085 Bonus ------- Polymind Skill 3250 Pacifist 200 Friendly Fire -785 Cogmind --------- Core Integrity 0/400 Matter 0/0 Energy 22/100 System Corruption 5% Temperature Cool (40) Movement Core (50) Location -9/Exiles Parts ------- > --- POWER (0) -------- (None) > --- PROPULSION (1) --- (None) > --- UTILITY (0) ------ (None) > --- WEAPON (1) ------- (None) > --- INVENTORY (0) ---- (None) Peak State ------------ > --- POWER ------------ Improved Ion Engine > --- PROPULSION ------- Light Treads Light Treads > --- UTILITY ---------- Heat Sink Heat Sink Light Armor Plating > --- WEAPON ----------- Beam Rifle Heavy Assault Rifle > --- INVENTORY -------- (None) [Rating: 11] Favorites ----------- Power Improved Ion Engine Engine Improved Ion Engine Propulsion Light Treads Treads Light Treads Wheel Compact Wheel Hover Unit Hover Unit Utility Heat Sink Device Heat Sink Storage Small Storage Unit Processor Visual Processing Unit Protection Light Armor Plating Weapon Beam Rifle Energy Gun Beam Rifle Ballistic Gun Heavy Assault Rifle Slashing Weapon Assembled Blade Build | -11 -10 -10 -9 -9 -9 ------- Run | Jun Mat Min Mat Min Exi Slots Evolved . | . . . . . . Power . | . . . . . . Propulsion . | . . . . . . Utility . | . . . . . . Weapon . | . . . . . . Parts Attached . | . . . . . . Power . | . . . . . . Engine . | . . . . . . Core . | . . . . . . Reactor . | . . . . . . Propulsion . | . . . . . . Treads . | . . . . . . Leg . | . . . . . . Wheel . | . . . . . . Hover . | . . . . . . Flight . | . . . . . . Utility . | . . . . . . Device . | . . . . . . Storage . | . . . . . . Processor . | . . . . . . Hackware . | . . . . . . Protection . | . . . . . . Artifact . | . . . . . . Weapon . | . . . . . . Energy Gun . | . . . . . . Energy Cannon . | . . . . . . Ballistic Gun . | . . . . . . Ballistic Cannon . | . . . . . . Launcher . | . . . . . . Special Weapon . | . . . . . . Impact Weapon . | . . . . . . Slashing Weapon . | . . . . . . Piercing Weapon . | . . . . . . Special Melee Weapon . | . . . . . . Unidentified Prototypes . | . . . . . . Parts Lost 8 | . . . 1 . 7 Power 1 | . . . . . 1 Propulsion 2 | . . . . . 2 Utility 1 | . . . . . 1 Weapon 4 | . . . 1 . 3 Highest Loss Streak 7 | . . . 1 . 7 To Critical Strikes . | . . . . . . Average Slot Usage (%) 99 | . 100 100 99 100 98 Engine 12 | . 18 16 12 12 11 Treads 23 | . . . 24 25 24 Hover 1 | . 14 33 . . . Device 24 | . 18 16 24 25 24 Processor 1 | . 14 33 . . . Protection 11 | . . . 11 12 11 Energy Gun 11 | . . . 11 12 11 Ballistic Gun 11 | . . . 11 12 11 Naked Turns 6 | . . . 3 . 3 Heaviest Build 18 | 9 9 4 18 18 18 Greatest Support 40 | 32 32 12 40 40 40 Greatest Overweight (x) . | . . . . . . Average Overweight (x) . | . . . . . . Largest Inventory Capacity 4 | 4 4 . 1 1 1 Average Capacity . | 2 2 . . 1 . Most Carried 1 | . 1 . . . . Average Carried . | . . . . . . Final Capacity 4 | 4 . . 1 1 . Final Carried . | . . . . . . Class Distribution -------------------- 95% | Sentry 3% | Watcher Dominant Class ---------------- Recycler | -10/Materials Watcher | -10/Mines Sentry | -9/Materials Sentry | -9/Mines Sentry | -9/Exiles Resources | -11 -10 -10 -9 -9 -9 ----------- Run | Jun Mat Min Mat Min Exi Matter Collected 414 | . . . 272 142 . Remotely . | . . . . . . Salvage Created 1260 | . . . 1054 185 21 Parts 107 | . . . 91 16 . Haulers Intercepted 1 | . . . 1 . . Recyclers Shooed . | . . . . . . Parts Field Recycled . | . . . . . . Retrieved Matter . | . . . . . . Parts Self-Destructed . | . . . . . . Prevented . | . . . . . . Kills | -11 -10 -10 -9 -9 -9 ------- Run | Jun Mat Min Mat Min Exi Combat Hostiles Destroyed 34 | . . . 25 7 2 Melee 2 | . . . . . 2 Guns 32 | . . . 25 7 . Classes Destroyed 12 | . . . 9 2 1 Worker 3 | . . . 3 . . Hauler 1 | . . . 1 . . Recycler 3 | . . . 1 2 . Operator 2 | . . . 2 . . Watcher 4 | . . . 4 . . Swarmer 6 | . . . 2 4 . Grunt 14 | . . . 13 1 . Brawler 1 | . . . . 1 . Duelist 1 | . . . 1 . . Sentry 9 | . . . 9 . . Demolisher 1 | . . . . 1 . Assembled 2 | . . . . . 2 Thug 2 | . . . . 2 . Best Kill Streak 4 | . . . 4 2 2 Combat Bots Only 4 | . . . 4 2 2 Max Kills in Single Turn 2 | . . . 1 2 1 Gunslinging 1 | . . . . 1 . Exploded . | . . . . . . Melee 1 | . . . . . 1 Uniques/NPCs Destroyed . | . . . . . . Combat | -11 -10 -10 -9 -9 -9 -------- Run | Jun Mat Min Mat Min Exi Damage Taken 1613 | . . . 881 43 689 Core 426 | . . . 101 6 319 Absorbed by Shields . | . . . . . . Ignored by Resistances 982 | . . . 598 31 353 Core Remaining (%) 100 | 100 . 100 . . . Volleys Fired 125 | . . . 89 29 7 Largest 2 | . . . 2 2 2 Hottest 79 | . . . 79 79 79 Shots Fired 248 | . . . 178 58 12 Gun 248 | . . . 178 58 12 Cannon . | . . . . . . Launcher . | . . . . . . Special . | . . . . . . Kinetic 123 | . . . 89 29 5 Thermal 125 | . . . 89 29 7 Explosive . | . . . . . . Electromagnetic . | . . . . . . Robot Hit Streak 29 | . . . 29 25 12 Robot Miss Streak 3 | . . . 3 1 1 Penetration Max . | . . . . . . Secondary Targets 2 | . . . . 2 . Max Gunslinging Chain 1 | . . . . 1 . Shots Hit Robots 206 | . . . 143 49 14 Core Hits 81 | . . . 57 19 5 Critical Kills 1 | . . . 1 . . Critical Parts Destroyed . | . . . . . . Critical Strikes 7 | . . . 3 3 1 Burn 6 | . . . 2 3 1 Destroy 1 | . . . 1 . . Melee Attacks 5 | . . . . . 5 Impact . | . . . . . . Slashing 5 | . . . . . 5 Piercing . | . . . . . . Sneak Attacks . | . . . . . . Combat Hostiles . | . . . . . . Follow-up Attacks . | . . . . . . Damage Inflicted 3223 | . . . 2177 773 273 Guns 3071 | . . . 2173 751 147 Cannons . | . . . . . . Explosions . | . . . . . . Melee 126 | . . . . . 126 Ramming 26 | . . . 4 22 . Kinetic 1450 | . . . 1017 387 46 Thermal 1621 | . . . 1156 364 101 Explosive . | . . . . . . Electromagnetic . | . . . . . . Impact . | . . . . . . Slashing 126 | . . . . . 126 Piercing . | . . . . . . Highest Corruption 5 | . . . 5 5 5 Average Corruption 4 | . . . 2 5 5 Corruption Purged . | . . . . . . Corruption Blocked . | . . . . . . Effects 71 | . . . 24 31 16 Message Errors 21 | . . . 4 11 6 Matter Fused 16 | . . . 6 7 3 Heat Flow Errors 12 | . . . 4 5 3 Energy Discharges 7 | . . . 2 3 2 Data Loss (minor) 7 | . . . 3 3 1 Data Loss (major) 6 | . . . 3 2 1 Misfires 1 | . . . 1 . . Weapon Failures 1 | . . . 1 . . Overload Shots . | . . . . . . Overflow Damage . | . . . . . . Projectiles . | . . . . . . Explosions . | . . . . . . Melee . | . . . . . . Knockbacks . | . . . . . . Impact . | . . . . . . Kinetic . | . . . . . . Secondary . | . . . . . . Self-Inflicted Damage . | . . . . . . Shots . | . . . . . . Rammed 7 | . . . 1 6 . Targets Rammed 9 | . . . 1 8 . Kicked . | . . . . . . Crushed 2 | . . . . 2 . Highest Temperature 269 | . . . 222 269 262 Average Temperature 46 | . . . 28 94 90 Received Heat Transfer 788 | . . . 516 12 260 Siege Activations . | . . . . . . Robots Corrupted . | . . . . . . Combat Hostiles . | . . . . . . Parts Fried . | . . . . . . Impact Corruptions . | . . . . . . Robots Melted . | . . . . . . Combat Hostiles . | . . . . . . Parts Melted 5 | . . . 3 2 . Heat Transferred 4477 | . . . 2997 1147 333 Parts Sabotaged . | . . . . . . Parts Stolen . | . . . . . . Parts Stripped . | . . . . . . Power Chain Reactions . | . . . . . . Missiles Intercepted . | . . . . . . Alert | -11 -10 -10 -9 -9 -9 ------- Run | Jun Mat Min Mat Min Exi Peak Influence 388 | . . 15 388 100 . Initial 3 | . . . 3 1 . Average 81 | . . . 120 27 . Maximum Alert Level 1 | . . . 1 . . Low Security (%) 89 | 100 100 100 81 100 . Level 1 10 | . . . 18 . . Level 2 . | . . . . . . Level 3 . | . . . . . . Level 4 . | . . . . . . Level 5 . | . . . . . . High Security . | . . . . . . Max Security . | . . . . . . Squads Dispatched 3 | . . . 3 . . Investigation . | . . . . . . Extermination . | . . . . . . Reinforcement 3 | . . . 3 . . Assault . | . . . . . . Garrison . | . . . . . . Intercept . | . . . . . . Searches Triggered . | . . . . . . Construction Impeded . | . . . . . . Haulers Reinforced . | . . . . . . Active Scanning Responses . | . . . . . . Cargo Convoy Interrupts . | . . . . . . Stealth | -11 -10 -10 -9 -9 -9 --------- Run | Jun Mat Min Mat Min Exi Distress Signals . | . . . . . . Communications Jammed . | . . . . . . Distress Signals . | . . . . . . Times Spotted 67 | . . . 38 5 24 Peak Tracking Total 14 | . . . 6 1 14 Tactical Retreats 4 | . . . 1 . 3 Traps | -11 -10 -10 -9 -9 -9 ------- Run | Jun Mat Min Mat Min Exi Traps Triggered 7 | . . . 7 . . Indirectly . | . . . . . . Trap Hack Attempts . | . . . . . . Triggered . | . . . . . . Disarmed . | . . . . . . Reprogrammed . | . . . . . . Reused . | . . . . . . Traps Extracted . | . . . . . . Installed . | . . . . . . Triggered . | . . . . . . Machines | -11 -10 -10 -9 -9 -9 ---------- Run | Jun Mat Min Mat Min Exi Machines Disabled 2 | . . . 2 . . Max in Single Turn 1 | . . . 1 . . Machines Repaired . | . . . . . . Machines Sabotaged . | . . . . . . Overloaded Fab Kills . | . . . . . . Hacking | -11 -10 -10 -9 -9 -9 --------- Run | Jun Mat Min Mat Min Exi Machines Accessed . | . . . . . . Terminals . | . . . . . . Fabricators . | . . . . . . Repair Stations . | . . . . . . Recycling Units . | . . . . . . Scanalyzers . | . . . . . . Garrison Access . | . . . . . . Total Hacks . | . . . . . . Successful . | . . . . . . Failed . | . . . . . . Catastrophic . | . . . . . . Database Lockouts . | . . . . . . Manual . | . . . . . . Terminals . | . . . . . . Fabricators . | . . . . . . Repair Stations . | . . . . . . Recycling Units . | . . . . . . Scanalyzers . | . . . . . . Garrison Access . | . . . . . . Terminal Hacks . | . . . . . . Fabricator Hacks . | . . . . . . Repair Station Hacks . | . . . . . . Recycling Unit Hacks . | . . . . . . Scanalyzer . | . . . . . . Garrison Access Hacks . | . . . . . . Unauthorized Hacks . | . . . . . . Terminals . | . . . . . . Fabricators . | . . . . . . Repair Stations . | . . . . . . Recycling Units . | . . . . . . Scanalyzers . | . . . . . . Garrison Access . | . . . . . . Data Cores Recovered . | . . . . . . Used . | . . . . . . Hacking Detections . | . . . . . . Full Trace Events . | . . . . . . Feedback Events . | . . . . . . Feedback Blocked . | . . . . . . Robot Schematics Acquired . | . . . . . . Robots Built . | . . . . . . Authchips . | . . . . . . Time . | . . . . . . Total Robot Build Rating . | . . . . . . Part Schematics Acquired . | . . . . . . Parts Built . | . . . . . . Authchips . | . . . . . . Time . | . . . . . . Total Part Build Rating . | . . . . . . Parts Repaired . | . . . . . . Time . | . . . . . . Parts Recycled . | . . . . . . Recycled Matter . | . . . . . . Retrieved Matter . | . . . . . . Retrieved Components . | . . . . . . Parts Scanalyzed . | . . . . . . Part Schematics Acquired . | . . . . . . Parts Damaged . | . . . . . . Bothacking | -11 -10 -10 -9 -9 -9 ------------ Run | Jun Mat Min Mat Min Exi Used RIF Installer . | . . . . . . Robots Hacked 3 | . 1 . 2 . . Non-combat 1 | . 1 . . . . Combat 2 | . . . 2 . . Robot Hacks Applied 4 | . 2 . 2 . . map_route 1 | . 1 . . . . mark_security 1 | . 1 . . . . find_shortcuts 2 | . . . 2 . . Relay Couplers Released . | . . . . . . Fabnet Peak Effective % . | . . . . . . Robots Rewired . | . . . . . . Allies Hacked . | . . . . . . Hacks Repelled . | . . . . . . Allies | -11 -10 -10 -9 -9 -9 -------- Run | Jun Mat Min Mat Min Exi Total Allies 1 | . . . . 1 . Largest Group 1 | . . . . 1 . Highest-Rated Group 31 | . . . . 31 . Highest-Rated Ally 31 | . . . . 31 . Total Orders . | . . . . . . Ally Attacks . | . . . . . . Total Damage . | . . . . . . Kills . | . . . . . . Allies Corrupted . | . . . . . . Allies Melted . | . . . . . . Intel | -11 -10 -10 -9 -9 -9 ------- Run | Jun Mat Min Mat Min Exi Robot Analysis Total 4 | 1 1 . 1 . 1 Derelict Logs Recovered 1 | . . 1 . . . Drone Launches . | . . . . . . Drone Recoveries . | . . . . . . Exploration | -11 -10 -10 -9 -9 -9 ------------- Run | Jun Mat Min Mat Min Exi Turns Passed 4507 | 14 70 103 2295 1397 628 Spaces Moved 2669 | 22 91 184 1302 803 267 Core 23 | 14 . . 6 . 3 Treads 2305 | . . . 1246 803 256 Legs . | . . . . . . Wheels 50 | 8 42 . . . . Hover 291 | . 49 184 50 . 8 Flight . | . . . . . . Fastest Speed 50 | 50 56 56 50 160 50 Average Speed 146 | 68 76 56 155 160 155 Slowest Speed 160 | 100 100 56 160 160 160 Overloaded Moves . | . . . . . . Propulsion Burnouts . | . . . . . . Robots Hopped . | . . . . . . Cave-ins Triggered . | . . . . . . Exploration Rate (%) 53 | 3 18 52 91 99 57 Regions Visited 5 Branch Regions 3 Pre-discovered Areas 1 | . . 1 . . . Known Exits Taken 5 | 1 1 1 1 1 . Unknown Exits Taken . | . . . . . . Scrap Searched . | . . . . . . Spaces Dug . | . . . . . . Terrain Destroyed . | . . . . . . Melee . | . . . . . . Projectile . | . . . . . . AOE . | . . . . . . Terrain Rammed . | . . . . . . Walls Destroyed . | . . . . . . Machines Disabled . | . . . . . . Actions | -11 -10 -10 -9 -9 -9 --------- Run | Jun Mat Min Mat Min Exi Total 3002 | 21 91 183 1394 853 460 Wait 196 | . . . 1 14 181 Move 2664 | 21 90 183 1301 802 267 Hop . | . . . . . . Pick Up 1 | . 1 . . . . Fast Attach . | . . . . . . Attach . | . . . . . . Detach . | . . . . . . Swap . | . . . . . . Drop . | . . . . . . Fire 125 | . . . 89 29 7 Melee 5 | . . . . . 5 Ram . | . . . . . . Kick . | . . . . . . Crush 9 | . . . 1 8 . Escape Stasis . | . . . . . . Rewire 2 | . . . 2 . . Trap . | . . . . . . Miscellaneous . | . . . . . . Route ------- -11/Junkyard -10/Materials (discovered 2 exits: *Mat / *Min) -10/Mines -9/Materials (discovered 5 exits: *Mat x3 / *Min / *Sto) -9/Mines (discovered 4 exits: *Mat x2 / *Exi / [*Zio]) -9/Exiles History --------- Turn | Location | Event 4 | -11/Junkyard | Identified exit to Materials 4 | -11/Junkyard | Discovered exit to Materials (range 16) 15 | -11/Junkyard | Entered Materials 58 | -10/Materials | Identified exit to Materials 58 | -10/Materials | Discovered exit to Materials (range 9) 58 | -10/Materials | Identified exit to Mines 58 | -10/Materials | Discovered exit to Mines (range 24) 85 | -10/Materials | Entered Mines 92 | -10/Mines | Found a damaged Exp. Sensor Array with a note attached 120 | -10/Mines | Learned location of Zion (-7) 180 | -10/Mines | Discovered exit to Materials (range 16) 188 | -10/Mines | Entered Materials 378 | -9/Materials | Identified exit to Materials 378 | -9/Materials | Discovered exit to Materials (range 16) 896 | -9/Materials | Discovered exit to Materials (range 14) 1405 | -9/Materials | Identified exit to Mines 1405 | -9/Materials | Discovered exit to Mines (range 8) 1727 | -9/Materials | Discovered exit to Materials (range 16) 1852 | -9/Materials | Identified exit to Storage 1852 | -9/Materials | Discovered exit to Storage (range 16) 2483 | -9/Materials | Entered Mines 2485 | -9/Mines | Met a Derelict bent on vengeance 2586 | -9/Mines | A Derelict revealed a hidden shortcut to a safe place 2693 | -9/Mines | Received a Rocket Launcher from a helpful Derelict 2786 | -9/Mines | Received a Mining Laser from a helpful Derelict 2818 | -9/Mines | Assembled infested the area 2823 | -9/Mines | Assisted by a Guerilla fighting off Assembled 2866 | -9/Mines | Discovered exit to Materials (range 8) 3040 | -9/Mines | Deemed a non-threat by the Exiles lab entrance 3041 | -9/Mines | Identified exit to Exiles 3041 | -9/Mines | Discovered exit to Exiles (range 5) 3500 | -9/Mines | Discovered exit to Materials (range 6) 3880 | -9/Mines | Entered Exiles 3919 | -9/Exiles | Met 8R-AWN 3944 | -9/Exiles | Met EX-HEX 3992 | -9/Exiles | Met EX-BIN 4111 | -9/Exiles | Met EX-DEC 4472 | -9/Exiles | Attacked by the Exiles 4499 | -9/Exiles | Core integrity fell below 50% 4506 | -9/Exiles | Core integrity fell below 20% 4508 | -9/Exiles | Destroyed by DAS Turret with DAS Cannon Last Messages --------------- 04474_ Lgt. Armor Plating destroyed. 04474_ EX-DEC suffers critical hit (Burn). 04479_ Imp. Ion Engine destroyed. 04479_ Lgt. Treads destroyed. 04485_ Hvy. Assault Rifle destroyed. 04486_ System corrupted: Component data lost. 04486_ EX-BIN: "I just want to science!" 04489_ Beam Rifle destroyed. 04490_ Released control of Y-45 Defender. 04490_ Took control of as-60968. 04490_ Extracted analysis data for Assembled. 04491_ Y-45 Defender reactivates. 04500_ as-27299 destroyed. 04502_ Asb. Hover Unit destroyed. 04503_ Knocked back. 04505_ as-45471 destroyed. 04505_ Asb. Blade destroyed. 04505_ Lost control of as-60968. 04505_ Knocked back. 04508_ Acquired 12 Protomatter. Map ----- +----------------------------------------------------+ | ??????????????????????????????????????#" "X" | | ????????????????????????" ????????????#" """ | | ???????????????????????? ???????????#" """"" | | ????????????????????????" ??????????##" ###### | | ????????????????????????# ?????????##"" #????? | | ??????????????????????### ##??######"" #????? | | ????????????????""#####X# #"###""""""" ##???? | | ??????????????? """""" " "" ##??? | | ?????????????? "" """ " #### | | ?????????????? " " | | ????????????? | | ?????????????? | | ??????????????# | | ???????????????# | | ????????????????#" | | ????????????????#""" """""" | | ???????????????##" ######""" | | ???????????????#"" ""##????#####""" | | ??????????????##"" """##?????????##""" | | ??????????????#"""%% """##???????????#"""" | | ??????????????#""" ""#???????????##"" | | ??????????????#"" ########??####"""" | | ??????????????#"" ##aaa####""" | | ??????????????#" a """" | | ??????????????##"" t a a % | | ???????????????#"""" @a | | ???????????????## | | ????????????????#" % " "" | | ????????????????#"""" ""## ##""" " | | ????????????????#"" ""#### ######"" | | ????????????????#" """"##??# #????### | | ????????????????#""" """#???# #??????# | | ????????????????## ""##???! ??????? | | ?????????????????#"" """##???#" ?????? | | ?????????????????##""" ##????#" ?????? | | ??????????????????##"""" ##?????#!!""!"????? | | ???????????????????### #???????######????? | | ?????????????????????##### ##?????????????????? | | ?????????????????????????## #??????????????????? | | ??????????????????????????# #??????????????????? | | ??????????????????????????# #??????????????????? | | ??????????????????????????# #??????????????????? | | ??????????????????????????? ???????????????????? | | ?????????????????????????????????????????????????? | | ?????????????????????????????????????????????????? | | ?????????????????????????????????????????????????? | | ?????????????????????????????????????????????????? | | ?????????????????????????????????????????????????? | | ?????????????????????????????????????????????????? | | ?????????????????????????????????????????????????? | +----------------------------------------------------+ Best States ------------- Heat Dissipation 36 Energy Generation 20 Energy Capacity 215 Matter Stores 100 Matter Capacity 100 Sight Range 18 Robot Scan Range 14 Terrain Scan Density 10 Armor Coverage 150 Resistance: KI 35 Resistance: TH 35 Resistance: EX 85 Resistance: EM 35 Resistance: I 60 Resistance: S 35 Resistance: P 35 Evasion (%) 53 Recoil Reduction 2 Offensive Hacking 20 Item Schematics ----------------- None Robot Schematics ------------------ None Fabricated ------------ Nothing Alien Tech Used ----------------- None Achievements -------------- None Challenges ------------ None Polymind | -11 -10 -10 -9 -9 -9 ---------- Run | Jun Mat Min Mat Min Exi Hosts 5 | 1 1 . 2 . 1 Combat Hostiles 3 | . . . 2 . 1 Allies . | . . . . . . Unique Host Classes 4 | 1 1 . 1 . 1 Average Host Suspicion 75 | 1 12 38 98 77 . Unsuspicious Activity 337 | 2 6 . 11 190 128 Returns to Shadow 1 | . . . . 1 . Fuzzy Dispatches . | . . . . . . Protomatter Created 411 | . . . 213 186 12 Used 79 | 5 12 . 46 . 16 Decayed 65 | . . . 25 40 . Highest Spend 23 | 5 12 . 23 . 16 Top 5 Hosts by Kills: Y-45 Defender (-9/Materials: 19) Y-45 Defender (-9/Materials: 13) as-60968 (-9/Exiles: 2) Game ------ Seed LongswordBackupDeconstructor Manual? 0 Play Time 00:20:34 Cumulative 1137.8 hours Start 2023.06.25 @ 17:44:58 End 2023.06.25 @ 18:03:14 Sessions 1 Manual Loads 0 Difficulty Explorer Special Mode Winter2022/Polymind Game No. 750 Rogue 711 Adventurer 6 Explorer 33 Win Type - Total 20 Types 11/1/4/4/0/0/0/0/0 Lore% 84 Gallery% 89 Achievement% 81 Wizard Run 0 Options --------- ASCII 0 Keyboard 0 Movement Mouse Keybinds 0 Fullscreen 1 Font 24/Crisp Map View 76x50 Tactical HUD 1 Map Filters NONE Filters NONE Steam 1 RUN: fa7b0aca-0069-4f11-b03a-e1c2b49a3269